fUSD/lending_fUSD_20260506
["ID","MTS","AMOUNT","RATE_DAILY","PERIOD"]
[421652509,1778027438000,-500.0,0.00014712,2]
[421652490,1778027438000,-1386.34858037,0.00014397,2]
[421652496,1778027438000,-6592.4157027,0.00014432,2]
[421652494,1778027438000,-374.68915625,0.00014397,2]
[421652497,1778027438000,-500.0,0.00014473,2]
[421652495,1778027438000,-324526.99691138,0.00014397,2]
[421652493,1778027438000,-503.5000001,0.00014397,2]
[421652491,1778027438000,-2007.6901779,0.00014397,2]
[421652492,1778027438000,-380.52932165,0.00014397,2]
[421652488,1778027438000,-2527.28622367,0.00014397,2]
[421652489,1778027438000,-2000.0,0.00014397,2]
[421652499,1778027438000,-6592.4157027,0.0001449,2]
[421652498,1778027438000,-500.0,0.00014473,2]
[421652511,1778027438000,-500.0,0.00014712,2]
[421652522,1778027438000,-500.0,0.00014712,2]
[421652513,1778027438000,-500.0,0.00014712,2]
[421652512,1778027438000,-500.0,0.00014712,2]
[421652535,1778027438000,-500.0,0.00014712,2]
[421652529,1778027438000,-500.0,0.00014712,2]
[421652527,1778027438000,-500.0,0.00014712,2]
[421652531,1778027438000,-500.0,0.00014712,2]
[421652528,1778027438000,-500.0,0.00014712,2]
[421652530,1778027438000,-500.0,0.00014712,2]
[421652526,1778027438000,-500.0,0.00014712,2]
[421652525,1778027438000,-500.0,0.00014712,2]
[421652524,1778027438000,-500.0,0.00014712,2]
[421652533,1778027438000,-500.0,0.00014712,2]
[421652523,1778027438000,-500.0,0.00014712,2]
[421652532,1778027438000,-500.0,0.00014712,2]
[421652510,1778027438000,-500.0,0.00014712,2]
[421652517,1778027438000,-500.0,0.00014712,2]
[421652514,1778027438000,-500.0,0.00014712,2]
[421652515,1778027438000,-500.0,0.00014712,2]
[421652519,1778027438000,-150.0,0.00014712,2]
[421652534,1778027438000,-500.0,0.00014712,2]
[421652520,1778027438000,-500.0,0.00014712,2]
[421652518,1778027438000,-500.0,0.00014712,2]
[421652521,1778027438000,-500.0,0.00014712,2]
[421652516,1778027438000,-208.07839763,0.00014712,2]
[421652585,1778027439000,-11462.4927542,0.00014851,2]
[421652579,1778027439000,-6592.4157027,0.00014841,2]
[421652559,1778027439000,-519.72096617,0.00014712,2]
[421652576,1778027439000,-99865.4510499,0.00014834,2]
[421652574,1778027439000,-6592.4157027,0.00014783,2]
[421652572,1778027439000,-3535.0,0.0001476,2]
[421652563,1778027439000,-150.0,0.00014715,2]
[421652566,1778027439000,-6592.4157027,0.00014724,2]
[421652570,1778027439000,-3624.0,0.0001476,2]
[421652557,1778027439000,-500.0,0.00014712,2]
[421652561,1778027439000,-305.29,0.00014715,2]
[421652555,1778027439000,-500.0,0.00014712,2]
[421652542,1778027439000,-500.0,0.00014712,2]
[421652552,1778027439000,-500.0,0.00014712,2]
[421652545,1778027439000,-500.0,0.00014712,2]
[421652543,1778027439000,-500.0,0.00014712,2]
[421652581,1778027439000,-1179.84611492,0.00014846,2]
[421652540,1778027439000,-506.83942771,0.00014712,2]
[421652541,1778027439000,-514.3099146,0.00014712,2]
[421652539,1778027439000,-500.0,0.00014712,2]
[421652537,1778027439000,-500.0,0.00014712,2]
[421652538,1778027439000,-500.0,0.00014712,2]
[421652546,1778027439000,-500.0,0.00014712,2]
[421652536,1778027439000,-500.0,0.00014712,2]
[421652550,1778027439000,-500.0,0.00014712,2]
[421652583,1778027439000,-5000.0,0.00014846,2]
[421652548,1778027439000,-500.0,0.00014712,2]
[421652588,1778027439000,-31760.6269322,0.00014851,2]
[421652592,1778027439000,-1000.0,0.0001488,2]
[421652634,1778027439000,-340.0,0.00015,5]
[421652629,1778027439000,-150.0,0.00014986,2]
[421652631,1778027439000,-150.80467489,0.00014999,2]
[421652643,1778027439000,-346.25747928,0.00015,2]
[421652640,1778027439000,-547.40929043,0.00015,2]
[421652627,1778027439000,-150.0,0.00014986,2]
[421652638,1778027439000,-691251.59960307,0.00015,2]
[421652624,1778027439000,-209.79667325,0.00014973,2]
[421652636,1778027439000,-1043.0,0.00015,5]
[421652625,1778027439000,-10862.86358939,0.00014977,2]
[421652621,1778027439000,-500.0,0.00014973,2]
[421652619,1778027439000,-170.12,0.00014972,2]
[421652544,1778027439000,-500.0,0.00014712,2]
[421652615,1778027439000,-151.0,0.00014946,2]
[421652617,1778027439000,-1000.0,0.0001497,2]
[421652595,1778027439000,-329.21344782,0.000149,2]
[421652597,1778027439000,-329.78013354,0.000149,2]
[421652599,1778027439000,-1977.98299024,0.000149,2]
[421652603,1778027439000,-1000.0,0.00014921,2]
[421652590,1778027439000,-26499.5319797,0.00014851,2]
[421652607,1778027439000,-191.40171334,0.00014925,2]
[421652605,1778027439000,-1000.0,0.00014921,2]
[421652611,1778027439000,-300720.05830109,0.00014946,2]
[421652609,1778027439000,-500.0,0.00014945,2]
[421652613,1778027439000,-151.0,0.00014946,2]
[421652601,1778027439000,-1000.0,0.0001492,2]
[421652787,1778027440000,-999.21765633,0.000149,2]
[421652980,1778027442000,-176.71592277,0.000147,2]
[421652974,1778027442000,-1.29303946,0.000149,2]
[421652982,1778027442000,-637.95398512,0.000149,2]
[421653241,1778027443000,-257.06160291,0.00015,2]
[421653205,1778027443000,-6041.0,0.00014999,2]
[421653203,1778027443000,-4953.95102179,0.000149,2]
[421653207,1778027443000,-747187.30193297,0.00015,2]
[421653246,1778027444000,300.4866937,0.00029875,120]
[421653245,1778027444000,-277.93924117,0.00015,2]
[421653244,1778027444000,-40591.44431342,0.00015,2]
[421653243,1778027444000,-426.5,0.00015,2]
[421653242,1778027444000,-40450.0,0.00015,2]
[421653250,1778027446000,-500.0,0.00014945,2]
[421653251,1778027446000,-500.0,0.00014999,2]
[421653252,1778027446000,-500.0,0.00014999,2]
[421653253,1778027446000,-34401.17037477,0.00015,2]
[421653255,1778027446000,-2276.97830001,0.00015,2]
[421653254,1778027446000,-409.87648713,0.00015,2]
[421653257,1778027447000,-5958.12795373,0.00015,2]
[421653256,1778027447000,-1759.0,0.00015,2]
[421653259,1778027447000,-2073.66515204,0.00015,2]
[421653258,1778027447000,-2482.43154664,0.00015,2]
[421653263,1778027447000,-5214.27011394,0.00015,2]
[421653262,1778027447000,-150.0,0.00015,2]
[421653261,1778027447000,-234.82,0.00015,2]
[421653265,1778027447000,-4598.9807339,0.00015,2]
[421653276,1778027447000,-151.0,0.00015,2]
[421653264,1778027447000,-150.0,0.00015,2]
[421653266,1778027447000,-151.0,0.00015,2]
[421653260,1778027447000,-427.26607652,0.00015,2]
[421653268,1778027447000,-290.157215,0.00015,2]
[421653267,1778027447000,-151.0,0.00015,2]
[421653281,1778027447000,225.36502027,0.00029875,120]
[421653280,1778027447000,-24443.88822399,0.00015,2]
[421653277,1778027447000,-2711.01941058,0.00015,2]
[421653278,1778027447000,-289.4375,0.00015,2]
[421653269,1778027447000,-290.157215,0.00015,2]
[421653270,1778027447000,-290.157215,0.00015,2]
[421653273,1778027447000,-703.98,0.00015,2]
[421653271,1778027447000,-290.157215,0.00015,2]
[421653275,1778027447000,-151.0,0.00015,2]
[421653274,1778027447000,-151.0,0.00015,2]
[421653284,1778027464000,400.0,0.000109,3]
[421653286,1778027494000,215.42,0.00022,30]
[421653285,1778027494000,215.42,0.0002,30]
[421653287,1778027495000,215.42,0.00024,60]
[421653289,1778027604000,161.56,0.00022,30]
[421653288,1778027604000,161.56,0.0002,30]
[421653290,1778027605000,161.56,0.00024,60]
[421653292,1778027708000,7772.384315,7.945e-05,2]
[421653295,1778027841000,154.61,7.765e-05,2]
[421653294,1778027841000,154.61,5.824e-05,2]
[421653302,1778027931000,-198.78272138,9.04e-05,2]
[421653303,1778027931000,-2468.36481003,9.04e-05,2]
[421653301,1778027931000,-300.0,9.039e-05,2]
[421653298,1778027931000,-300.0,9.039e-05,2]
[421653300,1778027931000,-304.85246859,9.039e-05,2]
[421653299,1778027931000,-228.0,9.039e-05,2]
[421653297,1778027931000,-1200.0,9.039e-05,2]
[421653305,1778027932000,-5000.0,9.04e-05,2]
[421653304,1778027932000,-5000.0,9.04e-05,2]
[421653307,1778027933000,-5000.0,9.04e-05,2]
[421653306,1778027933000,-5000.0,9.04e-05,2]
[421653310,1778027934000,-5000.0,9.04e-05,2]
[421653309,1778027934000,-5000.0,9.04e-05,2]
[421653308,1778027934000,-5000.0,9.04e-05,2]
[421653313,1778027935000,-1250.63189577,9.04e-05,2]
[421653312,1778027935000,-5000.0,9.04e-05,2]
[421653311,1778027935000,-5000.0,9.04e-05,2]
[421653314,1778027936000,-154.61,9.707e-05,2]
[421653316,1778027936000,-150.0,9.942e-05,2]
[421653317,1778027936000,-242.43784286,9.943e-05,2]
[421653315,1778027936000,-304.85246857,9.763e-05,2]
[421653318,1778027936000,-250.0,9.943e-05,2]
[421653320,1778027936000,-1680.0,9.943e-05,2]
[421653321,1778027936000,-420.0,9.943e-05,2]
[421653322,1778027936000,-80.48168924,9.943e-05,2]
[421653323,1778027936000,-339.51831076,9.943e-05,2]
[421653324,1778027936000,-333.56544276,9.944e-05,2]
[421653319,1778027936000,-466.98610356,9.943e-05,2]
[421653329,1778027942000,-12.16577791,0.00010698,2]
[421653328,1778027942000,-300.0,0.00010698,2]
[421653326,1778027942000,-3385.199,0.00010486,2]
[421653327,1778027942000,-324.699,0.00010486,2]
[421653325,1778027942000,-304.85246857,0.00010386,2]
[421653337,1778027947000,-500.0,0.00010699,2]
[421653332,1778027947000,-178.72964586,0.00010699,2]
[421653331,1778027947000,-500.0,0.00010699,2]
[421653333,1778027947000,-500.0,0.00010699,2]
[421653335,1778027947000,-500.0,0.00010699,2]
[421653330,1778027947000,-137.83422209,0.00010698,2]
[421653334,1778027947000,-500.0,0.00010699,2]
[421653341,1778027947000,-183.43613205,0.00010699,2]
[421653340,1778027947000,-500.0,0.00010699,2]
[421653336,1778027947000,-500.0,0.00010699,2]
[421653338,1778027947000,-500.0,0.00010699,2]
[421653339,1778027947000,-500.0,0.00010699,2]
[421653342,1778027948000,-316.56386795,0.00010699,2]
[421653344,1778027948000,-500.0,0.00010699,2]
[421653347,1778027948000,-230.83541607,0.00010699,2]
[421653343,1778027948000,-500.0,0.00010699,2]
[421653349,1778027948000,-254.74310284,0.00010699,2]
[421653348,1778027948000,-579.8882072,0.00010699,2]
[421653350,1778027948000,-1617.96940594,0.000107,2]
[421653346,1778027948000,-500.0,0.00010699,2]
[421653345,1778027948000,-500.0,0.00010699,2]
[421653351,1778027949000,-5000.0,0.000107,2]
[421653352,1778027950000,-5000.0,0.000107,2]
[421653354,1778027964000,-2850.0,0.000107,2]
[421653353,1778027964000,-150.0,0.00010699,2]
[421653355,1778027967000,160.0,0.000301,120]
[421653356,1778028130000,151.0,8.362e-05,2]
[421653357,1778028164000,155.0,8.362e-05,2]
[421653358,1778028347000,-157.3431096,9.015e-05,2]
[421653359,1778028424000,500.0,0.000109,3]
[421653373,1778028554000,-500.0,9.749e-05,2]
[421653374,1778028554000,-500.0,9.749e-05,2]
[421653372,1778028554000,-500.0,9.749e-05,2]
[421653375,1778028554000,-500.0,9.749e-05,2]
[421653371,1778028554000,-500.0,9.749e-05,2]
[421653370,1778028554000,-500.0,9.749e-05,2]
[421653368,1778028554000,-500.0,9.749e-05,2]
[421653367,1778028554000,-500.0,9.749e-05,2]
[421653365,1778028554000,-500.0,9.749e-05,2]
[421653364,1778028554000,-500.0,9.749e-05,2]
[421653363,1778028554000,-500.0,9.749e-05,2]
[421653362,1778028554000,-168.36955594,9.362e-05,2]
[421653360,1778028554000,-88.6068904,9.015e-05,2]
[421653361,1778028554000,-151.0,9.362e-05,2]
[421653376,1778028554000,-317.9103085,9.749e-05,2]
[421653366,1778028554000,-500.0,9.749e-05,2]
[421653378,1778028554000,-500.0,9.749e-05,2]
[421653369,1778028554000,-500.0,9.749e-05,2]
[421653379,1778028554000,-500.0,9.749e-05,2]
[421653377,1778028554000,-500.0,9.749e-05,2]
[421653393,1778028554000,-500.0,9.749e-05,2]
[421653395,1778028554000,-500.0,9.749e-05,2]
[421653394,1778028554000,-500.0,9.749e-05,2]
[421653392,1778028554000,-500.0,9.749e-05,2]
[421653390,1778028554000,-500.0,9.749e-05,2]
[421653389,1778028554000,-500.0,9.749e-05,2]
[421653388,1778028554000,-500.0,9.749e-05,2]
[421653391,1778028554000,-500.0,9.749e-05,2]
[421653385,1778028554000,-500.0,9.749e-05,2]
[421653387,1778028554000,-500.0,9.749e-05,2]
[421653386,1778028554000,-500.0,9.749e-05,2]
[421653384,1778028554000,-500.0,9.749e-05,2]
[421653383,1778028554000,-500.0,9.749e-05,2]
[421653382,1778028554000,-500.0,9.749e-05,2]
[421653381,1778028554000,-500.0,9.749e-05,2]
[421653380,1778028554000,-500.0,9.749e-05,2]
[421653396,1778028554000,-500.0,9.749e-05,2]
[421653397,1778028555000,-500.0,9.749e-05,2]
[421653398,1778028555000,-500.0,9.749e-05,2]
[421653399,1778028555000,-500.0,9.749e-05,2]
[421653401,1778028555000,-4458.47214793,9.75e-05,2]
[421653400,1778028555000,-37912.06664516,9.75e-05,2]
[421653402,1778028560000,-38844.6236388,9.75e-05,2]
[421653404,1778028567000,-39597.07173522,9.75e-05,2]
[421653403,1778028567000,-739.14222478,9.74e-05,2]
[421653421,1778028573000,-500.0,9.749e-05,2]
[421653428,1778028573000,-500.0,9.749e-05,2]
[421653419,1778028573000,-500.0,9.749e-05,2]
[421653412,1778028573000,-500.0,9.749e-05,2]
[421653430,1778028573000,-500.0,9.749e-05,2]
[421653407,1778028573000,-500.0,9.749e-05,2]
[421653405,1778028573000,-500.0,9.749e-05,2]
[421653406,1778028573000,-500.0,9.749e-05,2]
[421653411,1778028573000,-500.0,9.749e-05,2]
[421653408,1778028573000,-500.0,9.749e-05,2]
[421653409,1778028573000,-500.0,9.749e-05,2]
[421653410,1778028573000,-500.0,9.749e-05,2]
[421653422,1778028573000,-500.0,9.749e-05,2]
[421653425,1778028573000,-500.0,9.749e-05,2]
[421653414,1778028573000,-500.0,9.749e-05,2]
[421653423,1778028573000,-317.9103085,9.749e-05,2]
[421653429,1778028573000,-500.0,9.749e-05,2]
[421653413,1778028573000,-500.0,9.749e-05,2]
[421653416,1778028573000,-500.0,9.749e-05,2]
[421653415,1778028573000,-500.0,9.749e-05,2]
[421653424,1778028573000,-500.0,9.749e-05,2]
[421653426,1778028573000,-500.0,9.749e-05,2]
[421653432,1778028573000,-45019.0906515,9.75e-05,2]
[421653417,1778028573000,-500.0,9.749e-05,2]
[421653427,1778028573000,-500.0,9.749e-05,2]
[421653431,1778028573000,-500.0,9.749e-05,2]
[421653418,1778028573000,-500.0,9.749e-05,2]
[421653420,1778028573000,-500.0,9.749e-05,2]
[421653433,1778028574000,-8467.66942,9.75e-05,2]
[421653438,1778028590000,829.75,6.231e-05,2]
[421653437,1778028590000,829.75,5.96e-05,2]
[421653435,1778028590000,829.75,5.418e-05,2]
[421653434,1778028590000,829.75,5.147e-05,2]
[421653436,1778028590000,829.75,5.689e-05,2]
[421653443,1778028591000,829.75,7.585e-05,2]
[421653442,1778028591000,829.75,7.314e-05,2]
[421653441,1778028591000,829.75,7.043e-05,2]
[421653440,1778028591000,829.75,6.772e-05,2]
[421653439,1778028591000,829.75,6.501e-05,2]
[421653444,1778028592000,829.75,7.856e-05,2]
[421653445,1778028592000,829.75,8.127e-05,2]
[421653446,1778028592000,829.75,8.398e-05,2]
[421653447,1778028606000,-358.48123801,8.669e-05,2]
[421653448,1778028609000,-247.59,8.669e-05,2]
[421653470,1778028631000,-313.93,0.00010294,2]
[421653471,1778028631000,-24999.99,0.00010294,2]
[421653465,1778028631000,-1879.42,0.00010294,2]
[421653467,1778028631000,-1852.42,0.00010294,2]
[421653466,1778028631000,-189.73,0.00010294,2]
[421653463,1778028631000,-320.94199134,0.0001,2]
[421653459,1778028631000,-734.02675638,9.75e-05,2]
[421653457,1778028631000,-300.0,9.749e-05,2]
[421653456,1778028631000,-802.29589687,9.749e-05,2]
[421653455,1778028631000,-397.70410313,9.749e-05,2]
[421653462,1778028631000,-337.14023021,0.0001,2]
[421653461,1778028631000,-829.75,9.752e-05,2]
[421653468,1778028631000,-9999.99,0.00010294,2]
[421653460,1778028631000,-44870.21713041,9.75e-05,2]
[421653453,1778028631000,-594.17876199,9.21e-05,2]
[421653454,1778028631000,-829.75,9.481e-05,2]
[421653452,1778028631000,-235.57123801,9.21e-05,2]
[421653451,1778028631000,-829.75,8.94e-05,2]
[421653450,1778028631000,-223.67876199,8.669e-05,2]
[421653458,1778028631000,-532.39734675,9.749e-05,2]
[421653469,1778028631000,-150.99,0.00010294,2]
[421653489,1778028631000,-500.0,0.00010673,2]
[421653474,1778028631000,-151.0,0.00010362,2]
[421653475,1778028631000,-500.0,0.00010436,2]
[421653506,1778028631000,-138231.64670073,0.000107,2]
[421653500,1778028631000,-150.0,0.00010699,2]
[421653511,1778028631000,-367.55852767,0.000107,2]
[421653509,1778028631000,-885.56582339,0.000107,2]
[421653502,1778028631000,-756372.74634868,0.000107,2]
[421653487,1778028631000,-500.0,0.00010673,2]
[421653499,1778028631000,-9999.99,0.00010697,2]
[421653482,1778028631000,-168.16333527,0.00010673,2]
[421653497,1778028631000,-9999.99,0.00010697,2]
[421653508,1778028631000,-30762.10317888,0.000107,2]
[421653495,1778028631000,-352.45,0.00010697,2]
[421653479,1778028631000,-259.759,0.00010486,2]
[421653481,1778028631000,-2503.57,0.00010513,2]
[421653483,1778028631000,-500.47150084,0.00010673,2]
[421653493,1778028631000,-300.0,0.00010697,2]
[421653491,1778028631000,-205.41602722,0.00010673,2]
[421653477,1778028631000,-2708.159,0.00010486,2]
[421653464,1778028631000,-829.75,0.00010023,2]
[421653472,1778028631000,-829.75,0.00010294,2]
[421653485,1778028631000,-500.0,0.00010673,2]
[421653538,1778028637000,-20825.71033878,0.000107,2]
[421653540,1778028637000,-420.0,0.00010724,2]
[421653542,1778028637000,-2413.28258459,0.000108,2]
[421653539,1778028637000,-1266.77228273,0.000107,2]
[421653541,1778028637000,-1680.0,0.00010724,2]
[421653546,1778028637000,-380.52932165,0.000108,2]
[421653544,1778028637000,-468.12794408,0.000108,2]
[421653545,1778028637000,-28532.011616,0.000108,2]
[421653547,1778028637000,-3553.73881776,0.000108,2]
[421653543,1778028637000,-4757.0,0.000108,2]
[421653557,1778028638000,-1000.0,0.00011221,2]
[421653550,1778028638000,-878.01,0.00010932,2]
[421653551,1778028638000,-150.0,0.00010989,2]
[421653548,1778028638000,-189.73,0.00010866,2]
[421653552,1778028638000,-200.0,0.0001102,2]
[421653555,1778028638000,-1000.0,0.00011191,2]
[421653554,1778028638000,-1017.18259079,0.00011099,2]
[421653560,1778028638000,-151.0,0.00011362,2]
[421653553,1778028638000,-2000.0,0.00011094,2]
[421653563,1778028638000,-1017.18259075,0.0001166,2]
[421653562,1778028638000,-154.61,0.00011648,2]
[421653561,1778028638000,-189.73,0.00011438,2]
[421653564,1778028638000,-255.0,0.00011737,2]
[421653567,1778028638000,-8301.51496898,0.0001176,2]
[421653569,1778028638000,-3378.49661744,0.0001176,2]
[421653568,1778028638000,-1209.78503102,0.0001176,2]
[421653565,1778028638000,-518.7,0.00011746,2]
[421653566,1778028638000,-1194.25,0.0001176,2]
[421653559,1778028638000,-622.91719053,0.00011221,2]
[421653816,1778028640000,-6728.48,0.0001176,2]
[421653814,1778028640000,-23978.45338256,0.0001176,2]
[421653820,1778028640000,-499.99,0.0001176,2]
[421653822,1778028640000,-1500.0,0.00011768,2]
[421653818,1778028640000,-4316.29,0.0001176,2]
[421653824,1778028640000,-500.0,0.00011773,2]
[421653826,1778028640000,-500.0,0.00011773,2]
[421653837,1778028640000,-189.73,0.0001201,2]
[421653841,1778028640000,-42536.74061646,0.00012204,2]
[421653828,1778028640000,-502.63446726,0.00011773,2]
[421653830,1778028640000,-501.49599921,0.00011773,2]
[421653839,1778028640000,-150.0,0.00012204,2]
[421653834,1778028640000,-2351.0,0.00011796,2]
[421653835,1778028640000,-1100.0,0.000119,4]
[421653873,1778028640000,-596.298,0.00012204,2]
[421653832,1778028640000,-587.0,0.00011796,2]
[421654054,1778028645000,-999.99,0.00012204,2]
[421654051,1778028645000,-52336.78112543,0.00012204,2]
[421654053,1778028645000,-9999.99,0.00012204,2]
[421654055,1778028645000,-500.10898502,0.00012273,2]
[421654060,1778028645000,-878.01,0.00012299,2]
[421654052,1778028645000,-18243.55025811,0.00012204,2]
[421654057,1778028645000,-501.76177234,0.00012273,2]
[421654059,1778028645000,-500.0,0.00012273,2]
[421654058,1778028645000,-500.0,0.00012273,2]
[421654056,1778028645000,-500.0,0.00012273,2]
[421654070,1778028646000,-152.0,0.00012731,7]
[421654068,1778028646000,-1017.18259075,0.00012619,2]
[421654078,1778028646000,-2896.27152326,0.00012976,2]
[421654069,1778028646000,-250.0,0.00012622,2]
[421654075,1778028646000,-279.0,0.00012871,2]
[421654076,1778028646000,-801.79266518,0.00012944,2]
[421654065,1778028646000,-2000.0,0.00012481,2]
[421654071,1778028646000,-500.0,0.00012821,2]
[421654061,1778028646000,-2000.0,0.00012316,2]
[421654062,1778028646000,-502.72001278,0.00012321,2]
[421654064,1778028646000,-151.0,0.00012362,2]
[421654067,1778028646000,-189.73,0.00012581,2]
[421654063,1778028646000,-471.10592492,0.00012321,2]
[421654077,1778028646000,-823.0,0.00012976,2]
[421654066,1778028646000,-481.73,0.00012569,2]
[421654073,1778028646000,-1000.0,0.00012821,2]
[421654072,1778028646000,-863.80656971,0.00012821,2]
[421654095,1778028646000,-150.0,0.00013488,2]
[421654093,1778028646000,-150.0,0.00013488,2]
[421654091,1778028646000,-150.0,0.00013488,2]
[421654089,1778028646000,-500.0,0.00013425,2]
[421654087,1778028646000,-2335.20417041,0.00013412,2]
[421654083,1778028646000,-453.44424351,0.00013368,2]
[421654096,1778028646000,-749.79582959,0.00013579,2]
[421654084,1778028646000,-153.03,0.00013393,2]
[421654082,1778028646000,-164.20990619,0.00013362,2]
[421654080,1778028646000,-189.73,0.00013153,2]
[421654081,1778028646000,-166.55,0.00013318,2]
[421654079,1778028646000,-395.72847674,0.00012976,2]
[421654085,1778028646000,-664.79582959,0.00013412,2]
[421654074,1778028646000,-2500.0,0.00012864,2]
[421654118,1778028649000,-189.73,0.00013725,2]
[421654119,1778028649000,-707.8,0.00013812,2]
[421654121,1778028649000,-2000.0,0.00013868,2]
[421654120,1778028649000,-150.0,0.00013834,2]
[421654114,1778028649000,-417.26466308,0.00013699,2]
[421654109,1778028649000,-150.0,0.00013603,2]
[421654108,1778028649000,-267.38676116,0.00013579,2]
[421654112,1778028649000,-200.0,0.00013699,2]
[421654116,1778028649000,-757.27532126,0.00013699,2]
[421654117,1778028649000,-150.0,0.00013718,2]
[421654123,1778028649000,-477.51403986,0.0001396,2]
[421654113,1778028649000,-165.03,0.00013699,2]
[421654110,1778028649000,-44.30466308,0.00013665,2]
[421654111,1778028649000,-833.70533692,0.00013665,2]
[421654122,1778028649000,-150.0,0.00013949,2]
[421654125,1778028649000,-329.383658,0.00014011,2]
[421654124,1778028649000,-2011.85848826,0.0001396,2]
[421654127,1778028649000,-2344.48554686,0.0001415,2]
[421654126,1778028649000,-150.0,0.00014064,2]
[421654128,1778028649000,-20181.49999999,0.0001415,2]
[421654115,1778028649000,-778.39001566,0.00013699,2]
[421654137,1778028676000,-475.1107521,0.00010699,2]
[421654139,1778028678000,500.0,0.00010699,2]
[421654141,1778028678000,500.0,0.00010699,2]
[421654140,1778028678000,395.6717532,0.00010699,2]
[421654142,1778028678000,500.0,0.00010699,2]
[421654138,1778028678000,500.0,0.00010699,2]
[421654144,1778028678000,500.0,0.00010699,2]
[421654145,1778028678000,500.0,0.00010699,2]
[421654146,1778028678000,51.18527769,0.00010699,2]
[421654147,1778028678000,448.81472231,0.00010699,2]
[421654148,1778028678000,274.08077929,0.00010699,2]
[421654143,1778028678000,500.0,0.00010699,2]
[421654150,1778028696000,225.36502027,0.00030036,120]
[421654151,1778028834000,360.0,0.00024,30]
[421654157,1778029349000,154.09,8.379e-05,2]
[421654156,1778029349000,154.09,7.331e-05,2]
[421654155,1778029349000,154.09,6.284e-05,2]
[421654161,1778029540000,-1576.61157371,0.00010368,2]
[421654159,1778029540000,-154.09,9.426e-05,2]
[421654160,1778029540000,-294.03588972,0.0001,2]
[421654163,1778029627000,-88.25085478,0.00010371,2]
[421654162,1778029627000,-625.28732744,0.00010368,2]
[421654164,1778029751000,-161.74914522,0.00010371,2]
[421654165,1778029751000,-164.0962615,0.00010373,2]
[421654166,1778029751000,-36.06442179,0.00010473,2]
[421654170,1778029756000,-198.64876566,0.00011404,2]
[421654167,1778029756000,-118.02557821,0.00010473,2]
[421654169,1778029756000,-300.0,0.00011404,2]
[421654168,1778029756000,-268.01005253,0.00010828,2]
[421654172,1778029761000,-3378.17450038,0.00011405,2]
[421654174,1778029761000,-250.0,0.00011405,2]
[421654175,1778029761000,-38.303673,0.00011521,2]
[421654173,1778029761000,-500.0,0.00011405,2]
[421654171,1778029761000,-101.35123434,0.00011404,2]
[421654189,1778029831000,-1000.0,0.00012323,2]
[421654188,1778029831000,-921.46409216,0.00012261,2]
[421654190,1778029831000,-4808.84241953,0.00012324,2]
[421654183,1778029831000,-854.66260058,0.00012254,2]
[421654186,1778029831000,-1840.14739942,0.00012254,2]
[421654187,1778029831000,-437.48590784,0.00012261,2]
[421654193,1778029831000,-760.36475751,0.00012324,2]
[421654181,1778029831000,-115.786327,0.00011521,2]
[421654192,1778029831000,-801.1012462,0.00012324,2]
[421654194,1778029831000,-569.13169042,0.00012324,2]
[421654195,1778029831000,-914.31806116,0.00012324,2]
[421654196,1778029831000,-679.50905517,0.00012324,2]
[421654197,1778029831000,-723.91269507,0.00012324,2]
[421654198,1778029831000,-4366.79847194,0.00012324,2]
[421654191,1778029831000,-3129.00913283,0.00012324,2]
[421654199,1778029831000,-79.28202025,0.00012324,2]